bitfinex/quotes_ETHUSD_20250603
["timestamp","ask_amount","ask_price","bid_price","bid_amount"]
[1748924354396,0.8296,2595.9,2595.8,8.0]
[1748924356532,0.8296,2595.9,2595.6,8.0]
[1748924356908,0.04815849,2595.8,2595.4,8.0]
[1748924357528,0.04815849,2595.8,2595.4,11.85293544]
[1748924358323,0.87775864,2595.9,2595.6,8.0]
[1748924358511,3.934,2595.8,2595.6,8.0]
[1748924358911,0.0481564,2595.7,2595.4,8.0]
[1748924359209,0.0481564,2595.7,2595.6,8.0]
[1748924359412,3.98215847,2595.8,2595.6,8.0]
[1748924360639,3.934,2595.8,2595.6,8.0]
[1748924361839,0.7952,2596.1,2595.8,8.0]
[1748924362012,3.85003718,2597.4,2595.8,8.0]
[1748924362013,3.85144208,2596.5,2596.0,8.0738]
[1748924362218,3.89968891,2596.4,2596.0,8.0]
[1748924362421,3.89968727,2596.4,2596.0,8.0]
[1748924362625,5.42360199,2596.3,2595.8,8.0]
[1748924362928,3.98515411,2596.2,2595.8,8.0]
[1748924363249,3.98515411,2596.2,2595.8,11.85236468]
[1748924363455,3.98515411,2596.2,2596.0,8.0]
[1748924363949,0.8083,2596.5,2596.1,14.78692284]
[1748924364159,0.85644532,2597.0,2596.3,10.9349911]
[1748924364447,7.78778287,2596.9,2596.5,10.9349911]
[1748924364753,3.98514113,2596.8,2596.5,10.9349911]
[1748924364917,0.04814113,2596.8,2596.5,10.9349911]
[1748924365117,3.938,2596.7,2596.5,10.9349911]
[1748924366230,3.938,2596.7,2596.3,2.9349911]
[1748924366439,3.98614068,2596.7,2596.4,8.0]
[1748924367673,3.98414068,2596.7,2596.4,8.0]
[1748924367837,3.936,2596.7,2596.4,8.0]
[1748924369022,0.85434062,2596.6,2596.0,2.9349911]
[1748924369226,0.85434062,2596.6,2596.2,6.78668255]
[1748924369551,0.04814485,2596.7,2596.5,8.0]
[1748924369767,0.04814057,2597.0,2596.7,8.0]
[1748924369935,3.937,2596.9,2596.7,8.0]
[1748924370135,0.0481384,2596.8,2596.6,2.9349911]
[1748924371975,3.936,2596.9,2596.7,8.0]
[1748924372136,0.04813884,2597.0,2596.7,8.0]
[1748924373370,3.98313884,2597.0,2596.7,8.0]
[1748924373886,3.84971719,2597.6,2597.0,3.85045572]
[1748924374171,3.98412988,2597.5,2597.2,8.0]
[1748924374380,3.85002467,2597.4,2596.9,2.9349911]
[1748924374577,0.04812986,2597.3,2596.9,2.9349911]
[1748924374897,0.04812986,2597.3,2596.9,6.78569964]
[1748924375038,0.04812986,2597.3,2596.9,2.9349911]
[1748924375739,0.04812986,2597.3,2596.9,6.78573373]
[1748924376479,0.04812986,2597.3,2596.9,2.9349911]
[1748924376895,3.98212986,2597.3,2596.9,6.78571821]
[1748924377583,0.04812986,2597.3,2596.9,6.78571821]
[1748924377742,3.98112986,2597.3,2596.9,6.78571821]
[1748924378275,4.78232986,2597.3,2596.9,6.78571821]
[1748924378580,4.78232986,2597.3,2596.9,2.9349911]
[1748924379245,4.78232986,2597.3,2596.9,6.78571157]
[1748924381055,4.78232986,2597.3,2597.0,8.0]
[1748924381259,4.78232986,2597.3,2597.0,11.85054711]
[1748924381572,3.933,2597.3,2597.0,11.85054711]
[1748924384051,3.933,2597.3,2596.5,3.85131151]
[1748924384052,0.757,2597.2,2596.4,0.0738]
[1748924384394,0.757,2597.2,2596.5,2.9349911]
[1748924384395,3.89867262,2597.1,2596.5,2.9349911]
[1748924384546,3.932,2597.0,2596.6,12.5372052]
[1748924385427,3.932,2597.0,2596.6,8.68602123]
[1748924385719,3.932,2597.0,2596.6,12.53716024]
[1748924385720,3.98013593,2597.0,2596.6,12.53716024]
[1748924386078,3.98013593,2597.0,2596.6,8.68602123]
[1748924386282,3.98013593,2597.0,2596.6,12.53718801]
[1748924386684,3.932,2597.0,2596.6,12.53718801]
[1748924387314,7.78264467,2597.0,2596.6,8.68602123]
[1748924387518,0.8154,2596.8,2596.6,8.0]
[1748924387825,0.8154,2596.8,2596.4,8.0]
[1748924388382,0.8154,2596.8,2596.4,11.85145419]
[1748924389494,0.8154,2596.8,2596.4,8.0]
[1748924391921,0.8154,2596.8,2596.4,11.85147471]
[1748924392218,0.8154,2596.8,2596.4,8.0]
[1748924393930,4.66635732,2596.8,2596.4,8.0]
[1748924394528,3.85134528,2596.5,2596.0,7.80606481]
[1748924394726,3.89957396,2596.5,2596.0,7.80607101]
[1748924394929,0.7628,2596.4,2596.1,8.7879871]
[1748924395628,0.7628,2596.4,2596.1,12.63991456]
[1748924395934,0.04814474,2596.5,2596.1,12.63991456]
[1748924396433,0.04814474,2596.5,2596.2,2.9349911]
[1748924399540,3.85164655,2596.3,2595.8,8.0]
[1748924399743,3.89993907,2596.2,2595.8,8.0]
[1748924399948,0.04814838,2596.2,2595.7,2.9349911]
[1748924400241,3.85180723,2596.2,2595.8,8.0]
[1748924400614,3.85180723,2596.2,2595.7,8.0]
[1748924400924,3.85180723,2596.2,2595.8,2.9349911]
[1748924401142,0.7929,2596.4,2596.1,8.0]
[1748924401351,0.777,2596.7,2596.3,2.9349911]
[1748924401657,3.97514434,2596.6,2596.3,2.9349911]
[1748924401946,7.82640789,2596.6,2596.3,2.9349911]
[1748924402158,3.85159387,2596.4,2596.2,8.0]
[1748924402315,3.89973915,2596.4,2596.2,8.0]
[1748924402650,3.8995465,2596.5,2596.2,8.0]
[1748924403235,3.85151807,2596.4,2596.2,8.0]
[1748924403840,3.89955492,2596.5,2596.2,8.0]
[1748924404005,3.8514988,2596.4,2596.2,8.0]
[1748924404349,3.8995131,2596.5,2596.2,8.0]
[1748924404557,3.85163501,2596.3,2595.9,2.9349911]
[1748924404709,0.04814818,2596.3,2596.0,8.0]
[1748924405050,0.8298,2596.4,2596.2,8.0]
[1748924405642,0.87794629,2596.4,2596.2,8.0]
[1748924407303,4.72944688,2596.4,2596.0,8.0]
[1748924408946,0.87794629,2596.4,2596.0,8.0]
[1748924409309,0.87794629,2596.4,2596.2,8.0]
[1748924410046,4.72945734,2596.4,2596.2,8.0]
[1748924410253,0.87794629,2596.4,2596.2,8.0]
[1748924410605,0.8213,2596.9,2596.4,11.85143839]
[1748924410811,0.8213,2596.9,2596.6,8.0]
[1748924411010,3.925,2596.9,2596.6,8.0]
[1748924411621,0.04813799,2596.8,2596.6,8.0]
[1748924414341,3.85046019,2597.1,2596.7,2.9349911]
[1748924414541,0.04813541,2597.0,2596.8,8.0]
[1748924414726,0.04813541,2597.0,2596.6,8.0]
[1748924414934,0.87803541,2597.0,2596.6,8.0]
[1748924415540,4.80303541,2597.0,2596.6,8.0]
[1748924415742,0.87803541,2597.0,2596.6,8.0]
[1748924415947,4.80303541,2597.0,2596.6,11.85117396]
[1748924416116,3.925,2597.0,2596.8,3.8508393]
[1748924416522,3.925,2597.0,2596.8,8.0]
[1748924417056,0.82963352,2597.2,2596.8,11.85075158]
[1748924417257,3.925,2597.2,2597.0,8.0]
[1748924417416,3.925,2597.2,2596.8,8.0]
[1748924417616,0.04813332,2597.1,2596.8,8.0]
[1748924418761,0.04813332,2597.1,2596.9,8.0]
[1748924419560,3.97213324,2597.2,2596.9,8.0]
[1748924419863,0.04813069,2597.1,2596.7,11.8509709]
[1748924420563,0.04813069,2597.1,2596.9,8.0]
[1748924420742,3.97213439,2597.2,2596.9,8.0]
[1748924421083,0.40947103,2597.9,2597.1,10.9349911]
[1748924421272,8.59721339,2597.8,2597.2,8.0]
[1748924421565,3.84960397,2597.7,2597.2,11.85020268]
[1748924421867,0.82372602,2597.8,2597.4,8.0]
[1748924422072,3.924,2597.7,2597.4,8.0]
[1748924422228,3.9721224,2597.7,2597.4,8.0]
[1748924422455,0.04812175,2597.6,2597.1,8.0]
[1748924422656,3.89795216,2597.6,2597.0,8.37574688]
[1748924423158,0.7756,2597.5,2597.0,8.37574688]
[1748924423368,0.04812804,2597.4,2597.1,3.85033168]
[1748924424101,0.04812804,2597.4,2597.0,8.37574688]
[1748924424296,8.55709557,2597.3,2596.7,3.85101383]
[1748924424498,0.04813283,2597.2,2596.8,6.78585711]
[1748924424796,0.04813283,2597.2,2596.9,8.0]
[1748924424968,0.04813283,2597.2,2596.7,11.85101496]
[1748924425170,3.89844234,2597.2,2596.7,11.85101496]
[1748924425388,3.89844234,2597.2,2596.6,6.78610896]
[1748924425701,0.04813283,2597.2,2596.7,8.0]
[1748924426000,0.8179,2597.1,2596.7,8.0]
[1748924426174,3.97413763,2597.0,2596.7,8.0]
[1748924426692,0.04813763,2597.0,2596.8,3.85086796]
[1748924426879,0.86093685,2597.4,2597.2,8.0]
[1748924427081,4.7438,2597.4,2597.2,8.0]
[1748924428296,4.7428,2597.4,2597.2,8.0]
[1748924431082,4.79092794,2597.4,2597.2,8.0]
[1748924433010,4.7428,2597.4,2597.2,8.0]
[1748924434214,0.8128,2597.4,2597.2,8.0]
[1748924434415,4.7388,2597.4,2597.2,8.0]
[1748924434918,0.8128,2597.4,2597.2,8.0]
[1748924435121,3.925,2597.6,2597.2,6.78520318]
[1748924435284,3.97312346,2597.6,2597.2,6.78520318]
[1748924435680,3.97312346,2597.6,2597.2,2.9349911]
[1748924436417,3.97412346,2597.6,2597.2,2.9349911]
[1748924436622,7.82386405,2597.6,2597.2,2.9349911]
[1748924437117,7.8238698,2597.6,2597.3,8.0]
[1748924437316,7.8238698,2597.6,2597.0,10.9349911]
[1748924437317,3.97412346,2597.6,2597.0,10.9349911]
[1748924437527,7.82383704,2597.6,2597.1,8.0]
[1748924437733,7.82383704,2597.6,2597.1,11.85043182]
[1748924438109,7.82383704,2597.6,2597.1,8.0]
[1748924438318,3.84987221,2597.5,2597.1,8.0]
[1748924438497,0.81992696,2597.4,2597.1,8.0]
[1748924441404,0.7718,2597.4,2597.1,8.0]
[1748924442034,0.04812694,2597.5,2597.2,3.85028473]
[1748924442220,0.04812564,2597.5,2597.1,11.8503353]
[1748924443150,3.97212564,2597.5,2597.1,11.8503353]
[1748924446520,3.97212564,2597.5,2597.1,8.0]
[1748924448425,3.97112564,2597.5,2597.1,11.85044493]
[1748924449075,3.97112564,2597.5,2597.3,8.0]
[1748924449076,3.923,2597.5,2597.3,8.0]
[1748924450859,0.7635,2597.7,2597.3,8.0]
[1748924451182,3.923,2597.6,2597.3,11.85013892]
[1748924451963,3.923,2597.6,2597.3,8.0]
[1748924452681,0.81162215,2597.7,2597.3,8.0]
[1748924452866,0.01794978,2597.9,2597.7,8.0]
[1748924453039,3.9153419,2597.9,2597.7,8.0]
[1748924453246,3.84941104,2597.8,2597.7,8.0]
[1748924453460,3.91540392,2597.9,2597.7,8.0]
[1748924455445,3.923,2597.8,2597.7,8.0]
[1748924460679,7.77241104,2597.8,2597.7,8.0]
[1748924461058,4.62645922,2597.7,2597.0,7.23802796]
[1748924461253,3.84998201,2597.5,2597.1,8.0]
[1748924461505,3.84995284,2597.5,2597.1,8.0]
[1748924462408,3.84995322,2597.5,2597.1,8.0]
[1748924464997,7.77312551,2597.4,2597.1,8.0]
[1748924465305,0.7889,2597.3,2597.1,8.0]
[1748924465687,0.7889,2597.3,2596.9,8.0]
[1748924465883,0.7889,2597.3,2596.9,11.85072831]
[1748924466200,0.7889,2597.3,2597.0,3.85059174]
[1748924466405,0.7889,2597.3,2597.0,2.9349911]
[1748924466590,3.97112743,2597.4,2597.0,6.78557624]
[1748924467602,3.923,2597.3,2597.0,6.78557624]
[1748924468098,0.04812742,2597.2,2596.9,8.0]
[1748924468299,8.54068095,2597.1,2596.6,3.85117473]
[1748924468489,3.89881548,2597.0,2596.4,3.85134999]
[1748924468692,7.77374529,2596.9,2596.4,2.9349911]
[1748924468899,0.04813724,2596.8,2596.4,2.9349911]
[1748924469407,3.923,2596.9,2596.5,8.0]
[1748924472830,3.923,2596.9,2596.5,11.85131803]
[1748924477137,3.923,2596.9,2596.6,3.85117327]
[1748924477345,3.923,2596.9,2596.7,8.0]
[1748924478537,0.04813724,2597.0,2596.7,8.0]
[1748924478703,3.923,2596.9,2596.7,8.0]
[1748924480603,3.9711372,2596.9,2596.7,8.0]
[1748924480813,0.8152372,2597.1,2596.7,8.0]
[1748924481117,3.923,2597.0,2596.7,8.0]
[1748924481438,0.04813719,2596.9,2596.7,8.0]
[1748924482346,3.923,2597.0,2596.7,8.0]
[1748924482502,0.04813718,2596.9,2596.7,8.0]
[1748924482711,0.04813718,2596.9,2596.5,11.8512977]
[1748924484844,3.97113718,2597.0,2596.5,11.8512977]
[1748924485144,3.97113718,2597.0,2596.7,8.0]
[1748924487143,3.97113718,2597.0,2596.7,3.85102948]
[1748924487342,3.97113718,2597.0,2596.7,8.0]
[1748924488260,0.04813718,2597.0,2596.7,11.85098466]
[1748924488426,0.80713714,2597.3,2597.1,3.85035562]
[1748924488626,3.923,2597.3,2597.2,8.0]
[1748924488850,3.923,2597.3,2597.2,3.85030032]
[1748924489155,0.759,2597.5,2597.4,8.0]
[1748924489316,0.04813057,2597.6,2597.4,3.84996972]
[1748924489521,4.6789,2597.7,2597.3,11.85006237]
[1748924489759,0.04812397,2597.6,2597.3,11.85006237]
[1748924489959,0.04812397,2597.6,2597.3,8.0]
[1748924490745,0.04812397,2597.6,2597.1,11.85040369]
[1748924490947,3.84997543,2597.5,2596.9,0.0738]
[1748924491147,8.63826333,2597.4,2596.7,3.92482638]
[1748924491344,3.85017519,2597.3,2596.4,0.0738]
[1748924491545,3.85059016,2597.1,2596.6,3.85118768]
[1748924491733,0.04813674,2597.0,2596.7,8.0]
[1748924492325,0.7916,2596.9,2596.6,0.3851]
[1748924492526,0.7916,2596.9,2596.5,3.85133285]
[1748924493469,0.7916,2596.9,2596.7,8.0]
[1748924493967,0.7916,2596.9,2596.4,6.78642989]
[1748924494172,0.7916,2596.9,2596.5,3.85133834]
[1748924495844,0.7916,2596.9,2596.6,8.0]
[1748924499377,0.7916,2596.9,2596.6,3.85111484]
[1748924499549,0.7528,2597.4,2596.9,3.85074511]
[1748924499733,3.923,2597.3,2597.1,11.85036979]
[1748924499928,0.7528,2597.4,2597.1,11.85036979]
[1748924500154,3.923,2597.5,2597.1,11.85036979]
[1748924500568,0.8001276,2597.6,2597.3,8.0]
[1748924500758,3.923,2597.5,2597.3,8.0]
[1748924501272,3.923,2597.5,2597.1,3.8503994]
[1748924503373,0.8001276,2597.6,2597.1,3.8503994]
[1748924503588,0.0481246,2597.7,2597.4,3.84999049]
[1748924503732,3.9711246,2597.7,2597.4,8.0]
[1748924504527,3.9711246,2597.7,2597.3,0.0738]
[1748924505285,3.9711246,2597.7,2597.4,8.0]
[1748924505573,0.813,2597.8,2597.4,8.0]
[1748924505574,0.86112389,2597.8,2597.4,3.84997256]
[1748924505870,4.78412389,2597.8,2597.4,3.84997256]
[1748924506079,4.78412389,2597.8,2597.4,8.0]
[1748924506583,8.63355746,2597.8,2597.4,8.0]
[1748924506780,8.58543357,2597.8,2597.4,8.0]
[1748924506987,9.83068566,2597.8,2597.4,8.0]
[1748924507994,0.04812387,2597.7,2597.4,8.0]
[1748924514681,0.04812387,2597.7,2597.1,3.92424643]
[1748924514682,0.04812387,2597.7,2597.2,11.85023375]
[1748924515789,0.04812387,2597.7,2597.2,8.0]
[1748924515997,3.89773357,2597.7,2597.2,8.0]
[1748924516295,5.27237057,2597.7,2597.2,11.85028319]
[1748924516515,9.19437057,2597.7,2597.2,11.85028319]
[1748924516678,9.1462467,2597.7,2597.2,11.85028319]
[1748924516879,0.0481238,2597.6,2597.2,11.85028319]
[1748924517212,0.0481238,2597.6,2597.4,8.0]
[1748924517213,3.922,2597.6,2597.4,8.0]
[1748924517513,0.86112104,2597.8,2597.4,8.0]
[1748924517708,3.922,2597.7,2597.4,8.0]
[1748924518696,3.922,2597.7,2597.4,11.84994315]
[1748924519407,3.922,2597.7,2597.3,3.8500845]
[1748924519573,3.922,2597.7,2597.4,8.0]
[1748924523413,3.921,2597.7,2597.4,8.0]
[1748924523620,0.86112065,2597.8,2597.4,3.84996578]
[1748924523913,3.921,2597.7,2597.4,11.84996578]
[1748924524121,3.921,2597.7,2597.4,3.84996578]
[1748924524322,3.921,2597.7,2597.5,11.84983522]
[1748924524922,3.921,2597.7,2597.5,8.0]
[1748924525820,0.01794978,2597.9,2597.5,11.84984127]
[1748924525995,3.921,2597.8,2597.5,11.84984127]
[1748924526721,0.06606847,2597.9,2597.6,10.9349911]
[1748924526722,0.01794978,2597.9,2597.6,10.9349911]
[1748924526925,3.93894978,2597.9,2597.6,14.78468865]
[1748924527922,3.93894978,2597.9,2597.6,10.9349911]
[1748924528121,3.93894978,2597.9,2597.6,8.0]
[1748924528284,0.01794978,2597.9,2597.6,8.0]
[1748924529787,3.86727301,2597.9,2597.6,8.0]
[1748924530009,0.01794978,2597.9,2597.6,8.0]
[1748924530408,0.01794978,2597.9,2597.6,11.0087911]
[1748924531026,0.01794978,2597.9,2597.6,10.9349911]
[1748924532506,0.01794978,2597.9,2597.8,10.9349911]
[1748924533829,0.01794978,2597.9,2597.8,14.78440214]
[1748924534142,0.01794978,2597.9,2597.8,10.9349911]
[1748924534625,0.01794978,2597.9,2597.8,14.78440214]
[1748924534804,0.01794978,2597.9,2597.8,10.9349911]
[1748924536855,0.01794978,2597.9,2597.8,14.78440214]
[1748924539471,0.01794978,2597.9,2597.8,14.85820214]
[1748924541651,0.01794978,2597.9,2597.8,10.9349911]
[1748924541837,0.01794978,2597.9,2597.8,8.0]
[1748924542973,0.01794978,2597.9,2597.8,11.84941104]
[1748924543171,0.01794978,2597.9,2597.8,8.0]
[1748924543391,3.86723751,2597.9,2597.3,0.0738]
[1748924543536,0.06606896,2597.9,2597.5,8.0]
[1748924543892,0.06606896,2597.9,2597.4,6.78492609]
[1748924544029,0.06606896,2597.9,2597.5,8.0]
[1748924544227,0.06606896,2597.9,2597.5,11.84982139]
[1748924544425,0.01794978,2597.9,2597.6,3.84965354]
[1748924545325,0.01794978,2597.9,2597.6,6.78464464]
[1748924547288,0.01794978,2597.9,2597.8,8.0]
[1748924547490,0.01794978,2597.9,2597.8,14.78440214]
[1748924549863,0.01794978,2597.9,2597.8,11.84941104]
[1748924552353,0.01794978,2597.9,2597.8,11.92321104]
[1748924552663,0.01794978,2597.9,2597.8,21.92321104]
[1748924553294,0.01794978,2597.9,2597.8,21.43719904]
[1748924553659,0.01794978,2597.9,2597.8,17.63919904]
[1748924554296,0.01794978,2597.9,2597.8,16.28775004]
[1748924554497,0.01794978,2597.9,2597.8,15.84221104]
[1748924556689,0.01794978,2597.9,2597.8,16.85721104]
[1748924556879,0.01794978,2597.9,2597.8,19.79220214]
[1748924557081,0.01794978,2597.9,2597.8,15.87320214]
[1748924559900,0.01794978,2597.9,2597.8,25.87320214]
[1748924569040,0.01794978,2597.9,2597.8,26.42320214]
[1748924569041,1e-08,2597.9,2597.8,26.42320214]
[1748924569241,0.06810038,2598.9,2598.8,8.0]
[1748924569242,0.02,2598.9,2598.8,8.0]
[1748924569738,0.02,2598.9,2598.7,8.0]
[1748924569933,0.819,2598.8,2598.7,8.0]
[1748924571213,0.819,2598.8,2598.5,8.0]
[1748924571422,0.819,2598.8,2598.4,10.9349911]
[1748924572736,0.819,2598.8,2598.4,14.78338594]
[1748924572904,0.87809976,2598.7,2598.2,8.0]
[1748924573229,0.87809976,2598.7,2598.4,8.0]
[1748924573946,0.87809976,2598.7,2598.2,11.84876442]
[1748924575139,1.73749304,2598.7,2598.2,11.84876442]
[1748924575350,0.8183,2598.6,2598.2,11.84876442]
[1748924575636,0.04810733,2598.5,2598.2,11.84876442]
[1748924575846,0.86640733,2598.6,2598.2,11.84876442]
[1748924576641,0.8183,2598.6,2598.4,3.84852144]
[1748924579655,0.04810733,2598.8,2598.2,8.0]
[1748924579656,3.89608782,2598.8,2598.2,8.0]
[1748924579837,0.778,2598.5,2598.2,3.84878965]
[1748924581847,0.778,2598.5,2598.1,0.39332171]
[1748924582027,0.774,2598.4,2598.0,8.0]
[1748924582232,0.8221073,2598.4,2598.0,11.84910375]
[1748924584859,0.8221073,2598.4,2598.1,8.0]
[1748924585014,0.8221073,2598.4,2598.1,11.84894068]
[1748924586349,0.8221073,2598.4,2598.0,11.84904668]
[1748924587551,0.7595,2598.3,2597.7,2.9349911]
[1748924587775,0.0481143,2598.2,2597.9,8.0]
[1748924587937,0.7595,2598.1,2597.9,8.0]
[1748924590638,0.7595,2597.8,2597.3,2.9349911]
[1748924590951,0.7595,2597.8,2597.5,3.84981327]
[1748924591255,0.7595,2597.8,2597.5,6.78480437]
[1748924592870,0.7595,2597.8,2597.5,2.9349911]
[1748924593072,0.7595,2597.8,2597.5,6.784835]
[1748924593620,0.7595,2597.8,2597.3,10.9349911]
[1748924593896,0.7797,2597.6,2597.2,11.85020848]
[1748924594054,0.7797,2597.6,2597.3,3.85014913]
[1748924594260,0.7797,2597.6,2597.3,6.78514023]
[1748924596619,0.7797,2597.6,2597.3,2.9349911]
[1748924596772,0.82782359,2597.6,2597.2,8.39091531]
[1748924597298,0.82782359,2597.6,2597.2,12.24121476]
[1748924597682,0.7797,2597.6,2597.2,12.24121476]
[1748924598892,0.7797,2597.6,2597.3,3.85014029]
[1748924599209,0.7822,2597.8,2597.6,8.0]
[1748924600802,0.8303175,2597.8,2597.6,8.0]
[1748924601019,4.67973563,2597.8,2597.3,8.0]
[1748924601300,4.67973563,2597.8,2597.3,10.9349911]
[1748924601502,4.67973563,2597.8,2597.3,14.7851195]
[1748924601668,0.7822,2597.8,2597.6,8.0]
[1748924601999,0.83031997,2597.8,2597.6,8.0]
[1748924602578,0.7822,2597.8,2597.6,8.0]
[1748924606272,3.84956518,2597.7,2597.2,12.22890711]
[1748924606470,3.84974212,2597.6,2597.2,8.37862642]
[1748924606692,0.8236,2597.5,2597.2,8.0]
[1748924608726,4.67354742,2597.5,2597.2,8.0]
[1748924608932,0.8236,2597.5,2597.2,8.0]
[1748924609119,4.67346101,2597.5,2597.2,8.0]
[1748924609304,0.8236,2597.5,2597.2,8.0]
[1748924609806,0.8236,2597.5,2597.1,8.0]
[1748924610000,0.04812453,2597.4,2597.0,8.0]
[1748924610355,0.8297,2597.3,2597.0,8.0]
[1748924611031,0.8778299,2597.3,2597.0,11.8505898]
[1748924611330,0.8297,2597.3,2597.0,11.8505898]
[1748924615234,0.8297,2597.3,2597.1,3.85044461]
[1748924616247,0.87782989,2597.3,2597.0,11.85052276]
[1748924618819,0.8297,2597.3,2597.2,3.85030032]
[1748924619724,0.8297,2597.3,2597.1,6.7853687]
[1748924620770,3.917,2597.4,2597.3,11.85007698]
[1748924620922,3.917,2597.4,2597.3,14.78506808]
[1748924621119,0.8146,2597.7,2597.6,8.0]
[1748924621321,4.7316,2597.7,2597.6,8.0]
[1748924623833,0.8146,2597.7,2597.6,8.0]
[1748924627267,0.04812065,2597.8,2597.6,11.84970742]
[1748924627472,0.7662,2598.0,2597.6,3.84963023]
[1748924627773,4.6832,2598.0,2597.9,8.0]
[1748924628478,3.917,2598.0,2597.9,8.0]
[1748924631114,3.917,2598.1,2597.9,8.0]
[1748924638012,0.81251511,2598.2,2597.9,8.0]
[1748924638169,3.916,2598.1,2597.9,8.0]
[1748924638978,0.81251511,2598.2,2597.9,8.0]
[1748924639380,4.6804,2598.2,2597.9,8.0]
[1748924639709,0.04811232,2598.3,2597.9,8.0]
[1748924639902,4.6801,2598.4,2597.9,2.9349911]
[1748924640565,4.6801,2598.4,2598.1,11.84885822]
[1748924640883,0.04810935,2598.3,2597.9,6.78418907]
[1748924641203,0.04810935,2598.3,2597.9,3.84919797]
[1748924643503,4.72820935,2598.4,2597.9,3.84919797]
[1748924644608,4.72820935,2598.4,2597.7,0.0738]
[1748924644907,0.04811232,2598.3,2597.8,3.84932578]
[1748924645922,3.89679903,2598.3,2597.8,3.84932578]
[1748924647113,0.8248,2598.1,2597.7,3.84947737]
[1748924648327,0.8248,2598.1,2597.8,3.84941009]
[1748924651137,0.8248,2598.1,2597.9,8.0]
[1748924653259,0.8248,2598.1,2597.9,3.84926072]
[1748924654120,7.93,2598.8,2598.1,8.0]
[1748924654313,0.776,2598.7,2598.5,8.0]
[1748924654647,4.691,2598.7,2598.4,8.0]
[1748924655127,0.04810524,2598.6,2598.1,11.84889221]
[1748924656154,0.04810524,2598.6,2598.2,3.8488154]
[1748924656451,0.04810524,2598.6,2598.1,11.84887541]
[1748924656766,3.89634039,2598.6,2598.1,11.84887541]
[1748924656912,0.04810524,2598.6,2598.1,11.84887541]
[1748924657750,0.04810524,2598.6,2598.1,11.84889985]
[1748924662412,0.04810524,2598.6,2598.2,3.84881401]
[1748924663268,0.7829,2598.5,2598.1,11.84889587]
[1748924663872,0.7829,2598.5,2598.1,8.0]
[1748924664235,0.7829,2598.5,2598.1,11.8488635]
[1748924664431,0.7829,2598.5,2598.2,3.84880086]
[1748924664650,0.7829,2598.5,2598.1,11.84887955]
[1748924665037,0.0481087,2598.4,2598.0,11.849066]
[1748924665375,0.0481087,2598.4,2598.2,8.0]
[1748924665742,0.8310087,2598.5,2598.2,8.0]
[1748924666474,4.6793893,2598.5,2598.0,11.84904566]
[1748924666656,0.8310087,2598.5,2598.2,8.0]
[1748924667038,0.8310087,2598.5,2598.0,11.8490562]
[1748924667267,0.8310087,2598.5,2598.1,3.84896197]
[1748924667581,0.8310087,2598.5,2598.2,11.8487265]
[1748924667875,0.8310087,2598.5,2598.0,2.9349911]
[1748924668178,0.8310087,2598.5,2598.0,6.78409505]
[1748924669736,0.8310087,2598.5,2598.0,3.84910395]
[1748924670151,0.8310087,2598.5,2598.2,8.0]
[1748924670437,0.8310087,2598.5,2598.1,11.84889211]
[1748924671280,0.7829,2598.5,2598.2,3.84871318]
[1748924673652,0.7829,2598.5,2598.1,11.84890028]
[1748924674656,0.04810844,2598.4,2598.1,11.84890028]
[1748924679506,0.04810844,2598.4,2598.1,8.0]
[1748924686097,0.04810844,2598.4,2598.1,11.8489201]
[1748924686401,4.7440084,2598.5,2598.1,11.8489201]
[1748924688111,4.6959,2598.5,2598.1,11.8489201]
[1748924688267,4.74400839,2598.5,2598.1,11.8489201]
[1748924688466,4.6959,2598.5,2598.1,11.8489201]
[1748924689605,0.04810839,2598.6,2598.5,3.84837406]
[1748924689774,0.02,2598.9,2598.8,3.84792981]
[1748924689969,0.02,2598.9,2598.8,10.39801617]
[1748924690169,0.7935,2598.9,2598.8,8.0]
[1748924690397,0.84159876,2598.9,2598.8,8.0]
[1748924690605,0.7935,2598.9,2598.8,8.0]
[1748924690771,0.84160009,2598.9,2598.8,8.0]
[1748924692664,0.02,2598.9,2598.8,10.39801617]
[1748924695202,0.02,2598.9,2598.8,8.0]
[1748924702475,3.9159918,2598.9,2598.4,8.0]
[1748924702899,3.9159918,2598.9,2598.4,11.84849987]
[1748924703097,0.06809909,2598.9,2598.4,11.84849987]
[1748924703407,0.06809909,2598.9,2598.4,12.22474555]
[1748924703575,3.91590896,2598.9,2598.4,8.37624568]
[1748924703773,3.91590896,2598.9,2598.4,12.22475121]
[1748924704078,0.06809909,2598.9,2598.5,6.77766268]
[1748924704285,0.06809909,2598.9,2598.6,8.0]
[1748924706018,0.02,2598.9,2598.6,11.84819731]
[1748924707802,0.02,2598.9,2598.6,8.0]
[1748924708628,0.02,2598.9,2598.8,3.84792981]
[1748924708843,3.86779819,2598.9,2598.6,8.0]
[1748924709142,3.86791507,2598.9,2598.4,15.15406791]
[1748924709284,0.02,2598.9,2598.5,11.84827136]
[1748924710122,0.02,2598.9,2598.7,8.0]
[1748924711338,0.02,2598.9,2598.8,14.77724364]
[1748924721338,0.02,2598.9,2598.8,14.24444484]
[1748924724027,0.02,2598.9,2598.8,14.31824484]
[1748924724229,0.02,2598.9,2598.8,17.26475987]
[1748924724410,0.02,2598.9,2598.8,14.86824484]
[1748924724614,0.02,2598.9,2598.8,14.31824484]
[1748924724821,0.02,2598.9,2598.8,19.23924484]
[1748924725018,0.02,2598.9,2598.8,18.22924484]
[1748924725222,0.02,2598.9,2598.8,14.85029753]
[1748924725642,0.02,2598.9,2598.8,18.76129753]
[1748924727343,0.02,2598.9,2598.8,14.85029753]
[1748924727516,0.02,2598.9,2598.8,18.76129753]
[1748924727712,0.02,2598.9,2598.8,14.85029753]
[1748924727913,0.02,2598.9,2598.8,8.0]
[1748924728529,0.02,2598.9,2598.4,3.32260789]
[1748924728855,0.02,2598.9,2598.3,0.0738]
[1748924728856,3.84802763,2598.8,2598.2,3.84872315]